[Event "Titled Tuesday Blitz November 29 Late 2022"]
[White "Abrahamyan, Tatev"]
[Black "Gerbelli Neto, Eduardo"]
[WhiteFideId "13301918"]
[BlackFideId "2103281"]
[WhiteElo "2347"]
[BlackElo "2178"]
[Result "1-0"]
[Round "01"]
[TimeControl "180+1"]
[Date "2022.11.30"]
[WhiteClock "0:01:24"]
[BlackClock "0:00:47"]

1. e4 {[%clk 0:02:54]}  e5 {[%clk 0:02:59]} 2. Nf3 {[%clk 0:02:53]}  Nc6 {[%clk 0:03:00]} 3. Bc4 {[%clk 0:02:54]}  Nf6 {[%clk 0:02:59]} 4. Ng5 {[%clk 0:02:53]}  d5 {[%clk 0:02:59]} 5. exd5 {[%clk 0:02:54]}  Nd4 {[%clk 0:03:00]} 6. c3 {[%clk 0:02:52]}  b5 {[%clk 0:03:00]} 7. Bf1 {[%clk 0:02:52]}  Nxd5 {[%clk 0:03:00]} 8. cxd4 {[%clk 0:02:50]}  Qxg5 {[%clk 0:02:59]} 9. Bxb5+ {[%clk 0:02:50]}  Kd8 {[%clk 0:03:00]} 10. Qf3 {[%clk 0:02:49]}  Bb7 {[%clk 0:02:59]} 11. O-O {[%clk 0:02:41]}  exd4 {[%clk 0:02:32]} 12. d3 {[%clk 0:02:31]}  Qg6 {[%clk 0:02:30]} 13. Nd2 {[%clk 0:02:20]}  Rb8 {[%clk 0:02:28]} 14. Ne4 {[%clk 0:02:17]}  Nf6 {[%clk 0:02:11]} 15. Ba4 {[%clk 0:02:09]}  Nxe4 {[%clk 0:01:57]} 16. dxe4 {[%clk 0:02:08]}  Qxe4 {[%clk 0:01:57]} 17. Bg5+ {[%clk 0:01:55]}  f6 {[%clk 0:01:46]} 18. Bxf6+ {[%clk 0:01:31]}  gxf6 {[%clk 0:01:34]} 19. Qxf6+ {[%clk 0:01:30]}  Kc8 {[%clk 0:01:34]} 20. f3 {[%clk 0:01:31]}  Qe3+ {[%clk 0:01:09]} 21. Kh1 {[%clk 0:01:29]}  Rg8 {[%clk 0:00:47]} 22. Qf5+ {[%clk 0:01:24]} 1-0


[Site "https://www.chess.com"]

[Event "Titled Tuesday Blitz November 29 Late 2022"]
[White "Annaberdiyev, Babageldi"]
[Black "Kaganskiy, Gleb"]
[WhiteFideId "14000385"]
[BlackFideId "4132025"]
[WhiteElo "2332"]
[BlackElo "2165"]
[Result "1-0"]
[Round "01"]
[TimeControl "180+1"]
[Date "2022.11.30"]
[WhiteClock "0:01:48"]
[BlackClock "0:01:02"]

1. e4 {[%clk 0:02:57]}  e6 {[%clk 0:02:48]} 2. d4 {[%clk 0:02:57]}  d5 {[%clk 0:02:48]} 3. e5 {[%clk 0:02:57]}  c5 {[%clk 0:02:47]} 4. c3 {[%clk 0:02:58]}  Qb6 {[%clk 0:02:46]} 5. Nf3 {[%clk 0:02:57]}  Nc6 {[%clk 0:02:38]} 6. a3 {[%clk 0:02:57]}  c4 {[%clk 0:02:34]} 7. Nbd2 {[%clk 0:02:56]}  Na5 {[%clk 0:02:23]} 8. h4 {[%clk 0:02:56]}  Bd7 {[%clk 0:02:22]} 9. h5 {[%clk 0:02:56]}  Ne7 {[%clk 0:02:12]} 10. g4 {[%clk 0:02:56]}  h6 {[%clk 0:02:09]} 11. Bh3 {[%clk 0:02:54]}  Nc8 {[%clk 0:02:08]} 12. O-O {[%clk 0:02:50]}  Qc7 {[%clk 0:01:58]} 13. Qe2 {[%clk 0:02:50]}  Ba4 {[%clk 0:01:54]} 14. Nh4 {[%clk 0:02:48]}  Nb3 {[%clk 0:01:47]} 15. Nxb3 {[%clk 0:02:42]}  cxb3 {[%clk 0:01:45]} 16. f4 {[%clk 0:02:39]}  a6 {[%clk 0:01:42]} 17. Rf2 {[%clk 0:02:30]}  Be7 {[%clk 0:01:37]} 18. g5 {[%clk 0:02:26]}  Bb5 {[%clk 0:01:34]} 19. Qg4 {[%clk 0:02:23]}  Bd3 {[%clk 0:01:33]} 20. f5 {[%clk 0:02:21]}  hxg5 {[%clk 0:01:22]} 21. Bxg5 {[%clk 0:02:06]}  Bxg5 {[%clk 0:01:23]} 22. Qxg5 {[%clk 0:02:06]}  exf5 {[%clk 0:01:07]} 23. Qxg7 {[%clk 0:01:54]}  Rf8 {[%clk 0:01:02]} 24. Ng6 {[%clk 0:01:48]} 1-0


[Site "https://www.chess.com"]

[Event "Titled Tuesday Blitz November 29 Late 2022"]
[White "Ansh M Shah"]
[Black "Papasimakopoulos, Alexandros"]
[WhiteFideId "25033379"]
[BlackFideId "4244125"]
[WhiteElo "2084"]
[BlackElo "2365"]
[Result "0-1"]
[Round "01"]
[TimeControl "180+1"]
[Date "2022.11.30"]
[WhiteClock "0:00:02"]
[BlackClock "0:00:47"]

1. d4 {[%clk 0:02:49]}  e6 {[%clk 0:02:58]} 2. c4 {[%clk 0:02:50]}  Nf6 {[%clk 0:02:58]} 3. g3 {[%clk 0:02:50]}  Bb4+ {[%clk 0:02:58]} 4. Nd2 {[%clk 0:02:49]}  O-O {[%clk 0:02:56]} 5. Bg2 {[%clk 0:02:49]}  d5 {[%clk 0:02:57]} 6. Nf3 {[%clk 0:02:50]}  c6 {[%clk 0:02:54]} 7. O-O {[%clk 0:02:49]}  Nbd7 {[%clk 0:02:54]} 8. a3 {[%clk 0:02:48]}  Be7 {[%clk 0:02:49]} 9. Qc2 {[%clk 0:02:47]}  c5 {[%clk 0:02:45]} 10. dxc5 {[%clk 0:02:37]}  Nxc5 {[%clk 0:02:46]} 11. b4 {[%clk 0:02:37]}  Nce4 {[%clk 0:02:44]} 12. cxd5 {[%clk 0:02:35]}  exd5 {[%clk 0:02:39]} 13. Bb2 {[%clk 0:02:35]}  Bf5 {[%clk 0:02:39]} 14. Nh4 {[%clk 0:02:22]}  Nxd2 {[%clk 0:02:29]} 15. Qxd2 {[%clk 0:02:23]}  Be4 {[%clk 0:02:25]} 16. f3 {[%clk 0:02:19]}  Bg6 {[%clk 0:02:25]} 17. Nxg6 {[%clk 0:02:19]}  hxg6 {[%clk 0:02:26]} 18. Rac1 {[%clk 0:02:18]}  a5 {[%clk 0:02:20]} 19. b5 {[%clk 0:02:08]}  b6 {[%clk 0:02:20]} 20. Rfd1 {[%clk 0:02:07]}  Bc5+ {[%clk 0:02:18]} 21. Kh1 {[%clk 0:02:04]}  Re8 {[%clk 0:02:19]} 22. Rc2 {[%clk 0:02:01]}  Qe7 {[%clk 0:02:18]} 23. Bf1 {[%clk 0:01:59]}  Bxa3 {[%clk 0:02:13]} 24. Bxf6 {[%clk 0:01:57]}  Qxf6 {[%clk 0:02:12]} 25. Qxd5 {[%clk 0:01:57]}  Bc5 {[%clk 0:02:12]} 26. Qa2 {[%clk 0:01:43]}  Re3 {[%clk 0:02:03]} 27. Qd5 {[%clk 0:01:36]}  Rae8 {[%clk 0:01:59]} 28. Rb1 {[%clk 0:01:31]}  R3e5 {[%clk 0:01:57]} 29. Qd3 {[%clk 0:01:27]}  Re3 {[%clk 0:01:55]} 30. Qd5 {[%clk 0:01:26]}  Rd8 {[%clk 0:01:53]} 31. Qc4 {[%clk 0:01:18]}  Rd4 {[%clk 0:01:43]} 32. Qa2 {[%clk 0:01:10]}  Rd8 {[%clk 0:01:29]} 33. Qc4 {[%clk 0:01:08]}  Rd4 {[%clk 0:01:25]} 34. Qa2 {[%clk 0:01:07]}  g5 {[%clk 0:01:26]} 35. Rxc5 {[%clk 0:00:54]}  bxc5 {[%clk 0:01:24]} 36. b6 {[%clk 0:00:55]}  Rb4 {[%clk 0:01:24]} 37. b7 {[%clk 0:00:51]}  Qb6 {[%clk 0:01:19]} 38. Rxb4 {[%clk 0:00:24]}  cxb4 {[%clk 0:01:04]} 39. Qd5 {[%clk 0:00:07]}  Re7 {[%clk 0:01:04]} 40. Qxg5 {[%clk 0:00:04]}  Qxb7 {[%clk 0:01:01]} 41. e4 {[%clk 0:00:04]}  b3 {[%clk 0:00:59]} 42. Kg2 {[%clk 0:00:05]}  b2 {[%clk 0:00:59]} 43. Bc4 {[%clk 0:00:04]}  b1=Q {[%clk 0:00:58]} 44. Kh3 {[%clk 0:00:04]}  Q1b4 {[%clk 0:00:52]} 45. Bd5 {[%clk 0:00:04]}  Qd7+ {[%clk 0:00:51]} 46. g4 {[%clk 0:00:03]}  Qc3 {[%clk 0:00:49]} 47. Kg3 {[%clk 0:00:03]}  Qd6+ {[%clk 0:00:49]} 48. Kg2 {[%clk 0:00:02]}  Qc2+ {[%clk 0:00:48]} 49. Kh3 {[%clk 0:00:02]}  Qcxh2# {[%clk 0:00:47]} 0-1


[Site "https://www.chess.com"]

[Event "Titled Tuesday Blitz November 29 Late 2022"]
[White "Arnold, Ken"]
[Black "Tanenbaum, Zachary"]
[WhiteFideId "2056836"]
[BlackFideId "2060850"]
[WhiteElo "2364"]
[BlackElo "2175"]
[Result "1/2-1/2"]
[Round "01"]
[TimeControl "180+1"]
[Date "2022.11.30"]
[WhiteClock "0:00:20"]
[BlackClock "0:00:09"]

1. d4 {[%clk 0:03:00]}  d5 {[%clk 0:02:53]} 2. Bf4 {[%clk 0:03:00]}  Nf6 {[%clk 0:02:53]} 3. e3 {[%clk 0:02:57]}  c5 {[%clk 0:02:53]} 4. c3 {[%clk 0:02:57]}  Nc6 {[%clk 0:02:53]} 5. Nf3 {[%clk 0:02:57]}  Qb6 {[%clk 0:02:52]} 6. Qb3 {[%clk 0:02:56]}  c4 {[%clk 0:02:47]} 7. Qc2 {[%clk 0:02:55]}  Bf5 {[%clk 0:02:47]} 8. Qc1 {[%clk 0:02:55]}  e6 {[%clk 0:02:47]} 9. Nbd2 {[%clk 0:02:53]}  Qd8 {[%clk 0:02:47]} 10. Be2 {[%clk 0:02:53]}  Bd6 {[%clk 0:02:48]} 11. O-O {[%clk 0:02:51]}  O-O {[%clk 0:02:46]} 12. Bd1 {[%clk 0:02:50]}  b5 {[%clk 0:02:44]} 13. Bc2 {[%clk 0:02:50]}  b4 {[%clk 0:02:33]} 14. Bxd6 {[%clk 0:02:49]}  Qxd6 {[%clk 0:02:33]} 15. Re1 {[%clk 0:02:48]}  a5 {[%clk 0:01:47]} 16. e4 {[%clk 0:02:46]}  dxe4 {[%clk 0:01:48]} 17. Nxe4 {[%clk 0:02:42]}  Nxe4 {[%clk 0:01:49]} 18. Bxe4 {[%clk 0:02:42]}  Bxe4 {[%clk 0:01:50]} 19. Rxe4 {[%clk 0:02:41]}  Rfc8 {[%clk 0:01:26]} 20. Ne5 {[%clk 0:02:31]}  Ne7 {[%clk 0:01:22]} 21. Qf4 {[%clk 0:02:23]}  f6 {[%clk 0:01:16]} 22. Ng6 {[%clk 0:02:06]}  Qxf4 {[%clk 0:01:04]} 23. Nxf4 {[%clk 0:02:06]}  Nd5 {[%clk 0:00:56]} 24. Nxd5 {[%clk 0:02:02]}  exd5 {[%clk 0:00:57]} 25. Re7 {[%clk 0:02:00]}  Re8 {[%clk 0:00:51]} 26. Rae1 {[%clk 0:01:59]}  Kf8 {[%clk 0:00:49]} 27. Rxe8+ {[%clk 0:01:41]}  Rxe8 {[%clk 0:00:50]} 28. Rxe8+ {[%clk 0:01:41]}  Kxe8 {[%clk 0:00:51]} 29. a4 {[%clk 0:01:37]}  Kd7 {[%clk 0:00:40]} 30. f4 {[%clk 0:01:21]}  Ke6 {[%clk 0:00:40]} 31. Kf2 {[%clk 0:01:17]}  Kf5 {[%clk 0:00:39]} 32. Kf3 {[%clk 0:01:17]}  h5 {[%clk 0:00:39]} 33. g3 {[%clk 0:01:16]}  g5 {[%clk 0:00:36]} 34. fxg5 {[%clk 0:00:47]}  Kxg5 {[%clk 0:00:37]} 35. h3 {[%clk 0:00:27]}  b3 {[%clk 0:00:10]} 36. Ke3 {[%clk 0:00:21]}  Kf5 {[%clk 0:00:09]} 37. Kf3 {[%clk 0:00:20]}  Kg5 {[%clk 0:00:09]} 38. Ke3 {[%clk 0:00:20]}  Kf5 {[%clk 0:00:09]} 39. Kf3 {[%clk 0:00:20]}  Kg5 {[%clk 0:00:09]} 1/2-1/2


[Site "https://www.chess.com"]

[Event "Titled Tuesday Blitz November 29 Late 2022"]
[White "Atanasov, Anthony"]
[Black "De Souza, Cristiano Gomes"]
[WhiteFideId "2623897"]
[BlackFideId "2151758"]
[WhiteElo "2048"]
[BlackElo "2068"]
[Result "1-0"]
[Round "01"]
[TimeControl "180+1"]
[Date "2022.11.30"]
[WhiteClock "0:00:04"]
[BlackClock "0:00:21"]

1. d4 {[%clk 0:03:00]}  Nf6 {[%clk 0:02:58]} 2. Nf3 {[%clk 0:03:00]}  g6 {[%clk 0:02:58]} 3. Bf4 {[%clk 0:03:00]}  Bg7 {[%clk 0:02:57]} 4. e3 {[%clk 0:03:00]}  d6 {[%clk 0:02:56]} 5. Be2 {[%clk 0:03:00]}  O-O {[%clk 0:02:52]} 6. O-O {[%clk 0:03:01]}  Nbd7 {[%clk 0:02:52]} 7. c4 {[%clk 0:03:01]}  Re8 {[%clk 0:02:50]} 8. Nc3 {[%clk 0:03:01]}  b6 {[%clk 0:02:49]} 9. e4 {[%clk 0:03:01]}  Bb7 {[%clk 0:02:49]} 10. Qc2 {[%clk 0:03:00]}  e5 {[%clk 0:02:47]} 11. dxe5 {[%clk 0:03:01]}  Nxe5 {[%clk 0:02:47]} 12. Nxe5 {[%clk 0:03:00]}  dxe5 {[%clk 0:02:47]} 13. Rfd1 {[%clk 0:03:00]}  Qe7 {[%clk 0:02:44]} 14. Bg5 {[%clk 0:03:00]}  h6 {[%clk 0:02:43]} 15. Nd5 {[%clk 0:03:00]}  Bxd5 {[%clk 0:02:42]} 16. Bxf6 {[%clk 0:03:00]}  Bxe4 {[%clk 0:02:37]} 17. Qxe4 {[%clk 0:02:50]}  Qxf6 {[%clk 0:02:35]} 18. Rd7 {[%clk 0:02:48]}  c6 {[%clk 0:02:31]} 19. Rad1 {[%clk 0:02:45]}  Rad8 {[%clk 0:02:25]} 20. c5 {[%clk 0:02:12]}  bxc5 {[%clk 0:02:21]} 21. Bc4 {[%clk 0:02:11]}  Rxd7 {[%clk 0:02:19]} 22. Rxd7 {[%clk 0:02:11]}  Re7 {[%clk 0:02:18]} 23. Rxe7 {[%clk 0:02:11]}  Qxe7 {[%clk 0:02:18]} 24. Qxg6 {[%clk 0:02:11]}  Qf6 {[%clk 0:02:11]} 25. Qe4 {[%clk 0:02:09]}  Qd6 {[%clk 0:02:05]} 26. Qf3 {[%clk 0:02:06]}  Qf6 {[%clk 0:02:01]} 27. Qh5 {[%clk 0:02:00]}  e4 {[%clk 0:01:57]} 28. g3 {[%clk 0:01:56]}  Qe7 {[%clk 0:01:46]} 29. Qg6 {[%clk 0:01:52]}  e3 {[%clk 0:01:40]} 30. Qc2 {[%clk 0:01:27]}  exf2+ {[%clk 0:01:39]} 31. Kxf2 {[%clk 0:01:28]}  Bd4+ {[%clk 0:01:37]} 32. Kg2 {[%clk 0:01:29]}  Qf6 {[%clk 0:01:31]} 33. b3 {[%clk 0:01:27]}  Kg7 {[%clk 0:01:29]} 34. Qe2 {[%clk 0:01:26]}  Qe5 {[%clk 0:01:24]} 35. Qg4+ {[%clk 0:01:22]}  Qg5 {[%clk 0:01:21]} 36. Qd7 {[%clk 0:01:19]}  Qf6 {[%clk 0:01:12]} 37. Kh3 {[%clk 0:01:16]}  Qg6 {[%clk 0:01:00]} 38. a4 {[%clk 0:01:11]}  a5 {[%clk 0:00:57]} 39. Qc8 {[%clk 0:00:58]}  Qh5+ {[%clk 0:00:40]} 40. Kg2 {[%clk 0:00:57]}  Qg6 {[%clk 0:00:40]} 41. Qd7 {[%clk 0:00:47]}  Qe4+ {[%clk 0:00:36]} 42. Kh3 {[%clk 0:00:47]}  Qg6 {[%clk 0:00:35]} 43. Qe7 {[%clk 0:00:34]}  Qf5+ {[%clk 0:00:29]} 44. Kg2 {[%clk 0:00:23]}  Qc2+ {[%clk 0:00:25]} 45. Kh3 {[%clk 0:00:03]}  Qf5+ {[%clk 0:00:24]} 46. Kg2 {[%clk 0:00:03]}  Qc2+ {[%clk 0:00:23]} 47. Qe2 {[%clk 0:00:02]}  Qxe2+ {[%clk 0:00:23]} 48. Bxe2 {[%clk 0:00:03]}  Kf6 {[%clk 0:00:20]} 49. Bh5 {[%clk 0:00:03]}  Ke7 {[%clk 0:00:20]} 50. Kf3 {[%clk 0:00:03]}  f6 {[%clk 0:00:20]} 51. Kf4 {[%clk 0:00:04]}  Be5+ {[%clk 0:00:19]} 52. Kf5 {[%clk 0:00:04]}  Bd4 {[%clk 0:00:19]} 53. Kg6 {[%clk 0:00:04]}  Bg1 {[%clk 0:00:19]} 54. h3 {[%clk 0:00:03]}  Be3 {[%clk 0:00:19]} 55. Bg4 {[%clk 0:00:02]}  Bc1 {[%clk 0:00:19]} 56. Bf3 {[%clk 0:00:02]}  Bd2 {[%clk 0:00:18]} 57. h4 {[%clk 0:00:03]}  Be3 {[%clk 0:00:18]} 58. Kf5 {[%clk 0:00:03]}  Bf2 {[%clk 0:00:18]} 59. Kf4 {[%clk 0:00:03]}  Bd4 {[%clk 0:00:18]} 60. Bxc6 {[%clk 0:00:03]}  Be5+ {[%clk 0:00:19]} 61. Kf5 {[%clk 0:00:03]}  Bxg3 {[%clk 0:00:19]} 62. h5 {[%clk 0:00:03]}  Bh4 {[%clk 0:00:19]} 63. Bd5 {[%clk 0:00:03]}  Bg5 {[%clk 0:00:19]} 64. Ke4 {[%clk 0:00:03]}  Kd6 {[%clk 0:00:19]} 65. Bf7 {[%clk 0:00:04]}  Bc1 {[%clk 0:00:20]} 66. Kf5 {[%clk 0:00:04]}  Bb2 {[%clk 0:00:19]} 67. Bg8 {[%clk 0:00:03]}  Be5 {[%clk 0:00:19]} 68. Kg6 {[%clk 0:00:04]}  Kc6 {[%clk 0:00:20]} 69. Kxh6 {[%clk 0:00:04]}  Kd6 {[%clk 0:00:20]} 70. Kg6 {[%clk 0:00:04]}  Bd4 {[%clk 0:00:20]} 71. Bc4 {[%clk 0:00:04]}  f5 {[%clk 0:00:20]} 72. Kxf5 {[%clk 0:00:04]}  Bh8 {[%clk 0:00:20]} 73. Kg6 {[%clk 0:00:04]}  Ke7 {[%clk 0:00:20]} 74. Kh7 {[%clk 0:00:03]}  Bd4 {[%clk 0:00:20]} 75. Kg8 {[%clk 0:00:03]}  Be5 {[%clk 0:00:19]} 76. h6 {[%clk 0:00:04]}  Bd4 {[%clk 0:00:19]} 77. h7 {[%clk 0:00:04]}  Be5 {[%clk 0:00:18]} 78. h8=Q {[%clk 0:00:05]}  Bxh8 {[%clk 0:00:18]} 79. Kxh8 {[%clk 0:00:06]}  Kf6 {[%clk 0:00:18]} 80. Kg8 {[%clk 0:00:05]}  Ke5 {[%clk 0:00:19]} 81. Kg7 {[%clk 0:00:05]}  Kd4 {[%clk 0:00:19]} 82. Kf6 {[%clk 0:00:05]}  Kc3 {[%clk 0:00:20]} 83. Ke5 {[%clk 0:00:04]}  Kb4 {[%clk 0:00:20]} 84. Kd5 {[%clk 0:00:04]}  Ka3 {[%clk 0:00:21]} 85. Kxc5 {[%clk 0:00:04]}  Kb2 {[%clk 0:00:21]} 86. Kb5 {[%clk 0:00:04]}  Kc2 {[%clk 0:00:21]} 87. Kxa5 {[%clk 0:00:04]} 1-0


[Site "https://www.chess.com"]

[Event "Titled Tuesday Blitz November 29 Late 2022"]
[White "Ballester Llagaria, Luis Eduardo"]
[Black "Dardha, Daniel"]
[WhiteFideId "2297620"]
[BlackFideId "240990"]
[WhiteElo "2344"]
[BlackElo "2528"]
[Result "0-1"]
[Round "01"]
[TimeControl "180+1"]
[Date "2022.11.30"]
[WhiteClock "0:00:40"]
[BlackClock "0:00:49"]

1. e4 {[%clk 0:02:58]}  c6 {[%clk 0:02:57]} 2. Nc3 {[%clk 0:02:58]}  d5 {[%clk 0:02:57]} 3. Nf3 {[%clk 0:02:59]}  dxe4 {[%clk 0:02:57]} 4. Nxe4 {[%clk 0:03:00]}  Nf6 {[%clk 0:02:58]} 5. Qe2 {[%clk 0:02:59]}  Nxe4 {[%clk 0:02:58]} 6. Qxe4 {[%clk 0:03:00]}  Be6 {[%clk 0:02:59]} 7. c4 {[%clk 0:02:53]}  Nd7 {[%clk 0:02:53]} 8. Ng5 {[%clk 0:02:47]}  Nf6 {[%clk 0:02:50]} 9. Nxe6 {[%clk 0:02:47]}  Nxe4 {[%clk 0:02:50]} 10. Nxd8 {[%clk 0:02:47]}  Rxd8 {[%clk 0:02:51]} 11. d3 {[%clk 0:02:35]}  Nc5 {[%clk 0:02:48]} 12. Be3 {[%clk 0:02:35]}  e5 {[%clk 0:02:33]} 13. O-O-O {[%clk 0:02:29]}  Ne6 {[%clk 0:02:29]} 14. g3 {[%clk 0:02:10]}  Bc5 {[%clk 0:02:23]} 15. Bh3 {[%clk 0:02:07]}  Bxe3+ {[%clk 0:02:10]} 16. fxe3 {[%clk 0:02:08]}  Ke7 {[%clk 0:02:11]} 17. Kc2 {[%clk 0:02:04]}  h5 {[%clk 0:02:09]} 18. Bxe6 {[%clk 0:01:57]}  Kxe6 {[%clk 0:02:10]} 19. h3 {[%clk 0:01:55]}  Rh6 {[%clk 0:01:59]} 20. Rhf1 {[%clk 0:01:52]}  Rg6 {[%clk 0:01:57]} 21. Rf3 {[%clk 0:01:48]}  Rg5 {[%clk 0:01:52]} 22. Rdf1 {[%clk 0:01:32]}  f6 {[%clk 0:01:46]} 23. Kc3 {[%clk 0:01:30]}  Rh8 {[%clk 0:01:40]} 24. d4 {[%clk 0:01:26]}  e4 {[%clk 0:01:36]} 25. Rf4 {[%clk 0:01:26]}  Rxg3 {[%clk 0:01:36]} 26. Rxe4+ {[%clk 0:01:26]}  Kf7 {[%clk 0:01:35]} 27. h4 {[%clk 0:01:21]}  Re8 {[%clk 0:01:12]} 28. Rxe8 {[%clk 0:01:20]}  Kxe8 {[%clk 0:01:13]} 29. Kd3 {[%clk 0:01:13]}  Rh3 {[%clk 0:01:05]} 30. Rf4 {[%clk 0:01:11]}  Ke7 {[%clk 0:01:06]} 31. Ke4 {[%clk 0:00:51]}  g6 {[%clk 0:00:54]} 32. d5 {[%clk 0:00:47]}  c5 {[%clk 0:00:50]} 33. d6+ {[%clk 0:00:39]}  Ke6 {[%clk 0:00:49]} 34. d7 {[%clk 0:00:40]}  f5+ {[%clk 0:00:49]} 0-1


[Site "https://www.chess.com"]

[Event "Titled Tuesday Blitz November 29 Late 2022"]
[White "Bashirli, Nail"]
[Black "Miller, Luke C"]
[WhiteFideId "13406809"]
[BlackFideId "2096935"]
[WhiteElo "2318"]
[BlackElo "2398"]
[Result "1-0"]
[Round "01"]
[TimeControl "180+1"]
[Date "2022.11.30"]
[WhiteClock "0:00:21"]
[BlackClock "0:00:05"]

1. e4 {[%clk 0:02:59]}  c5 {[%clk 0:03:00]} 2. Nc3 {[%clk 0:02:59]}  e6 {[%clk 0:03:00]} 3. g3 {[%clk 0:02:59]}  Nc6 {[%clk 0:03:00]} 4. Bg2 {[%clk 0:02:59]}  Nf6 {[%clk 0:02:59]} 5. Nge2 {[%clk 0:02:59]}  d5 {[%clk 0:02:58]} 6. exd5 {[%clk 0:02:58]}  exd5 {[%clk 0:02:58]} 7. d4 {[%clk 0:02:58]}  cxd4 {[%clk 0:02:56]} 8. Nxd4 {[%clk 0:02:59]}  Bc5 {[%clk 0:02:56]} 9. Nb3 {[%clk 0:02:59]}  Bb4 {[%clk 0:02:46]} 10. O-O {[%clk 0:02:59]}  Be6 {[%clk 0:02:45]} 11. Bg5 {[%clk 0:02:57]}  Bxc3 {[%clk 0:02:37]} 12. bxc3 {[%clk 0:02:57]}  h6 {[%clk 0:02:37]} 13. Bf4 {[%clk 0:02:51]}  O-O {[%clk 0:02:30]} 14. Re1 {[%clk 0:02:52]}  Rc8 {[%clk 0:02:30]} 15. Nc5 {[%clk 0:02:51]}  Bg4 {[%clk 0:02:21]} 16. Qd2 {[%clk 0:02:51]}  Na5 {[%clk 0:02:13]} 17. Nb3 {[%clk 0:02:35]}  Nc4 {[%clk 0:02:09]} 18. Qd4 {[%clk 0:02:28]}  b6 {[%clk 0:01:52]} 19. h3 {[%clk 0:02:28]}  Bf5 {[%clk 0:01:52]} 20. Re2 {[%clk 0:02:28]}  Qd7 {[%clk 0:01:50]} 21. g4 {[%clk 0:02:27]}  Bg6 {[%clk 0:01:41]} 22. Bxh6 {[%clk 0:02:27]}  Na3 {[%clk 0:01:26]} 23. Bxg7 {[%clk 0:01:47]}  Kxg7 {[%clk 0:01:18]} 24. g5 {[%clk 0:01:39]}  Nxc2 {[%clk 0:01:03]} 25. gxf6+ {[%clk 0:01:03]}  Kg8 {[%clk 0:00:49]} 26. Qh4 {[%clk 0:01:02]}  Qf5 {[%clk 0:00:45]} 27. Nd4 {[%clk 0:01:00]}  Nxd4 {[%clk 0:00:41]} 28. cxd4 {[%clk 0:01:01]}  Rc6 {[%clk 0:00:39]} 29. Re5 {[%clk 0:00:55]}  Qxf6 {[%clk 0:00:23]} 30. Qxf6 {[%clk 0:00:55]}  Rxf6 {[%clk 0:00:24]} 31. Rxd5 {[%clk 0:00:54]}  Rc8 {[%clk 0:00:21]} 32. Rg5 {[%clk 0:00:38]}  Kf8 {[%clk 0:00:18]} 33. Rg3 {[%clk 0:00:20]}  Rc2 {[%clk 0:00:18]} 34. Bf3 {[%clk 0:00:20]}  Rf4 {[%clk 0:00:15]} 35. d5 {[%clk 0:00:20]}  Rd4 {[%clk 0:00:12]} 36. a3 {[%clk 0:00:20]}  Rc3 {[%clk 0:00:11]} 37. Bg2 {[%clk 0:00:20]}  Rxg3 {[%clk 0:00:09]} 38. fxg3 {[%clk 0:00:21]}  Ke7 {[%clk 0:00:10]} 39. Rc1 {[%clk 0:00:20]}  Kd7 {[%clk 0:00:08]} 40. h4 {[%clk 0:00:20]}  Be4 {[%clk 0:00:07]} 41. Bh3+ {[%clk 0:00:18]}  Kd6 {[%clk 0:00:05]} 42. Rc6+ {[%clk 0:00:18]}  Kxd5 {[%clk 0:00:06]} 43. Rc7 {[%clk 0:00:19]}  Ra4 {[%clk 0:00:04]} 44. Rxf7 {[%clk 0:00:18]}  Rxa3 {[%clk 0:00:04]} 45. Kf2 {[%clk 0:00:18]}  a5 {[%clk 0:00:01]} 46. h5 {[%clk 0:00:17]}  a4 {[%clk 0:00:02]} 47. h6 {[%clk 0:00:18]}  Ra2+ {[%clk 0:00:02]} 48. Ke3 {[%clk 0:00:18]}  Ke5 {[%clk 0:00:03]} 49. Re7+ {[%clk 0:00:18]}  Kf6 {[%clk 0:00:03]} 50. Rxe4 {[%clk 0:00:18]}  Ra3+ {[%clk 0:00:04]} 51. Kf4 {[%clk 0:00:18]}  Kg6 {[%clk 0:00:05]} 52. Re6+ {[%clk 0:00:19]}  Kh7 {[%clk 0:00:03]} 53. Bf5+ {[%clk 0:00:20]}  Kg8 {[%clk 0:00:04]} 54. h7+ {[%clk 0:00:20]}  Kh8 {[%clk 0:00:04]} 55. Re8+ {[%clk 0:00:20]}  Kg7 {[%clk 0:00:05]} 56. h8=Q+ {[%clk 0:00:21]} 1-0


[Site "https://www.chess.com"]

[Event "Titled Tuesday Blitz November 29 Late 2022"]
[White "Battlecruiser_Operational"]
[Black "Lewtak, Damian"]
[BlackFideId "1141724"]
[WhiteElo "2140"]
[BlackElo "2329"]
[Result "0-1"]
[Round "01"]
[TimeControl "180+1"]
[Date "2022.11.30"]
[WhiteClock "0:00:04"]
[BlackClock "0:00:10"]

1. d4 {[%clk 0:02:59]}  d5 {[%clk 0:02:59]} 2. c4 {[%clk 0:02:59]}  c6 {[%clk 0:02:58]} 3. Nc3 {[%clk 0:02:59]}  Nf6 {[%clk 0:02:58]} 4. e3 {[%clk 0:03:00]}  e6 {[%clk 0:02:50]} 5. Nf3 {[%clk 0:03:00]}  Nbd7 {[%clk 0:02:51]} 6. Qc2 {[%clk 0:03:00]}  h6 {[%clk 0:02:50]} 7. Bd2 {[%clk 0:02:59]}  Bd6 {[%clk 0:02:48]} 8. O-O-O {[%clk 0:02:59]}  Qe7 {[%clk 0:02:35]} 9. Kb1 {[%clk 0:02:58]}  dxc4 {[%clk 0:02:25]} 10. Bxc4 {[%clk 0:02:57]}  e5 {[%clk 0:02:26]} 11. Nh4 {[%clk 0:02:39]}  Nb6 {[%clk 0:02:24]} 12. Bb3 {[%clk 0:02:36]}  e4 {[%clk 0:02:21]} 13. g3 {[%clk 0:02:32]}  g5 {[%clk 0:02:17]} 14. Ng2 {[%clk 0:02:32]}  Bg4 {[%clk 0:02:16]} 15. Rc1 {[%clk 0:02:30]}  O-O-O {[%clk 0:02:14]} 16. h3 {[%clk 0:01:34]}  Bf3 {[%clk 0:02:12]} 17. Rhg1 {[%clk 0:01:34]}  Kb8 {[%clk 0:02:09]} 18. Ne1 {[%clk 0:01:33]}  Bh5 {[%clk 0:02:08]} 19. Na4 {[%clk 0:01:21]}  Nbd5 {[%clk 0:02:03]} 20. a3 {[%clk 0:01:13]}  Rc8 {[%clk 0:01:43]} 21. Nc5 {[%clk 0:01:09]}  Nd7 {[%clk 0:01:42]} 22. Nxd7+ {[%clk 0:00:56]}  Qxd7 {[%clk 0:01:41]} 23. g4 {[%clk 0:00:50]}  Bg6 {[%clk 0:01:40]} 24. Ka1 {[%clk 0:00:49]}  h5 {[%clk 0:01:40]} 25. Qc4 {[%clk 0:00:37]}  hxg4 {[%clk 0:01:31]} 26. hxg4 {[%clk 0:00:37]}  Rh2 {[%clk 0:01:27]} 27. Qf1 {[%clk 0:00:23]}  Rch8 {[%clk 0:01:14]} 28. Nc2 {[%clk 0:00:17]}  R8h4 {[%clk 0:01:02]} 29. Bxd5 {[%clk 0:00:17]}  cxd5 {[%clk 0:01:02]} 30. Nb4 {[%clk 0:00:17]}  Be7 {[%clk 0:00:47]} 31. Qe2 {[%clk 0:00:16]}  Rh8 {[%clk 0:00:41]} 32. Rc2 {[%clk 0:00:12]}  Rh1 {[%clk 0:00:39]} 33. Rxh1 {[%clk 0:00:12]}  Rxh1+ {[%clk 0:00:39]} 34. Ka2 {[%clk 0:00:13]}  Rh4 {[%clk 0:00:29]} 35. Rc1 {[%clk 0:00:09]}  Rxg4 {[%clk 0:00:24]} 36. f3 {[%clk 0:00:08]}  Rh4 {[%clk 0:00:19]} 37. fxe4 {[%clk 0:00:08]}  Bxe4 {[%clk 0:00:18]} 38. Qf2 {[%clk 0:00:09]}  Rh8 {[%clk 0:00:16]} 39. Qxf7 {[%clk 0:00:08]}  g4 {[%clk 0:00:11]} 40. Qg7 {[%clk 0:00:08]}  Re8 {[%clk 0:00:10]} 41. Rg1 {[%clk 0:00:06]}  Bf3 {[%clk 0:00:08]} 42. Bc3 {[%clk 0:00:06]}  Qe6 {[%clk 0:00:08]} 43. Nc2 {[%clk 0:00:05]}  a6 {[%clk 0:00:07]} 44. Ne1 {[%clk 0:00:06]}  Qf6 {[%clk 0:00:07]} 45. Qxf6 {[%clk 0:00:06]}  Bxf6 {[%clk 0:00:08]} 46. Nxf3 {[%clk 0:00:06]}  gxf3 {[%clk 0:00:08]} 47. Rf1 {[%clk 0:00:07]}  Rxe3 {[%clk 0:00:09]} 48. Kb3 {[%clk 0:00:06]}  Bxd4 {[%clk 0:00:09]} 49. Kc2 {[%clk 0:00:07]}  Bxc3 {[%clk 0:00:09]} 50. bxc3 {[%clk 0:00:08]}  d4 {[%clk 0:00:09]} 51. cxd4 {[%clk 0:00:07]}  Rxa3 {[%clk 0:00:10]} 52. Kb2 {[%clk 0:00:07]}  Re3 {[%clk 0:00:10]} 53. Kc2 {[%clk 0:00:07]}  Kc7 {[%clk 0:00:10]} 54. Rh1 {[%clk 0:00:05]}  f2 {[%clk 0:00:10]} 55. Rf1 {[%clk 0:00:05]}  Rf3 {[%clk 0:00:10]} 56. Kd2 {[%clk 0:00:04]}  Kd6 {[%clk 0:00:10]} 0-1


[Site "https://www.chess.com"]